Workbook

Sheet TEST - BUP
D1: TEST DE DETERIORO DEL VALOR DE LOS ACTIVOS ASOCIADOS A LOS ACUERDOS DE CONCESIÓN MODO DE TRANSPORTE PORTUARIO
D2: GESTIÓN ADMINISTRATIVA Y FINANCIERA
D3: CÓDIGO | F3: GADF-F-095 | G3: VERSIÓN | I3: 2 | L3: FECHA | M3: 2023-09-28
C5: Contrato de Concesión No:
C6: Proyecto:
C7: NIT:
C8: Fecha de evaluación
C10: FASE 1 - TEST | H10: INDICIO
C11: Contestar todas las preguntas de acuerdo con el estado de los activos correspondientes a Bienes de Uso Público: Infraestructura en servicio, en construcción y dragados capital. Para los activos cuya capacidad de prestar servicios es = 0, no se debe realizar evaluación de indicios de deterioro, este activo debe darse de baja. | AB11: Anexo | AF11: ANI
C12: Indicios de deterioro por daños físicos o capacidad de prestación de servicio | F12: SI/NO | H12: Si alguna de las respuestas fue afirmativa, se considera que SI existe indicio de deterioro, de lo contrario NO | AB12: 1. INFRAESTRUCTURA EN SERVICIO | AF12: Concesionario
B13: 1 | C13: ¿Se dispone de evidencia de deterioro originado por daño físico del activo y no se espera su reparación en un periodo inferior a 12 meses? | F13: NO | AB13: 2.INFRAESTRUCTURA EN CONSTRUCCION
B14: 2 | C14: ¿Se dispone de evidencia que permita determinar que el activo ha perdido significativamente su capacidad para prestar servicios, originado en daño físico, a largo plazo (más de 12 meses)? | F14: NO | H14: =+IF(AND(F13="NO",F14="NO"),"NO","SI") -> NO | AB14: 4.DRAGADOS - CAPITAL
B15: 1 y 2
B16: 1 y 2 | C16: FASE 2 - INFORMACIÓN PARA LA DETERMINACION DEL VALOR DEL SERVICIO RECUPERABLE
C17: Anexo | D17: Clase | E17: Ítem de Inversión | F17: Detalle de Ítem de Inversión | G17: Unidad de activo | H17: Costo historico del activo (COP) | I17: Fecha puesta en Servicio/ operación (dd/mm/aaaa) | J17: Proporción de la parte dañada (%) | K17: Indicio de deterioro fue identificado en el activo | M17: Costo de Reposición | O17: Costo de Rehabilitación
K18: Daños físicos | L18: Pérdida en capacidad de prestación de servicios | M18: Aplica | N18: Valor Costo de Reposición (COP) | O18: Aplica | P18: Valor Costo de Rehabilitación (COP)
M19: =+IF(OR(K19="SI",L19="SI"),"Aplica","N/A") -> N/A | O19: =+IF(OR(K19="SI",L19="SI"),"Aplica","N/A") -> N/A
M20: =+IF(OR(K20="SI",L20="SI"),"Aplica","N/A") -> N/A | O20: =+IF(OR(K20="SI",L20="NO"),"Aplica","N/A") -> N/A
M21: N/A | O21: =+IF(OR(K21="SI",L21="NO"),"Aplica","N/A") -> N/A
M22: =+IF(OR(K22="SI",L22="SI"),"Aplica","N/A") -> N/A | O22: =+IF(OR(K22="SI",L22="NO"),"Aplica","N/A") -> N/A
M23: N/A | O23: N/A
M24: N/A | O24: N/A
C26: FIRMAS
D29: Firma Representante legal del concesionario
D30: Nombre:
I31: Firma Contador Público del concesionario
I32: Nombre:
D33: Interventor del Contrato de Concesión (en caso que aplique) | I33: T.P. No.
D34: Nombre:
D35: Cargo:
C37: REVISIÓN DOCUMENTAL AGENCIA NACIONAL DE INFRAESTRUCTURA (ANI)
C38: Revisado por: | I38: Aprobado por:
C39: Aspectos técnicos | F39: Aspectos Financieros | I39: Aspectos técnicos | M39: Aspectos Financieros
C40: Nombre: | F40: Nombre: | I40: Nombre: | M40: Nombre:
C41: Firma: | F41: Firma: | I41: Firma: | M41: Firma:
C44: Lider de seguimiento de proyecto | F44: Profesional Financiero | I44: Gerente Técnico para el modo portuario | M44: Gerente Financiero para el modo portuario

Sheet Hoja3 (hidden)
A2: Anexo | B2: 1. INFRAESTRUCTURA EN SERVICIO | C2: 2.INFRAESTRUCTURA EN CONSTRUCCION | D2: 4.DRAGADOS - CAPITAL | E2: =+Bx -> 0
A3: Infraestructura.servicio | B3: Inmuebles.por.Destinación.Servicio | C3: Inmuebles.por.Destinación.construcción | D3: Red.Marítima.Dragados.Capital.en.Servicio | E3: =+Cx -> 0
A4: Infraestructura.construcción | B4: Construcciones.en.Servicio | C4: Construcciones.en.Construcción | D4: Red.Marítima.Dragados.Capitales.En.construcción | E4: =+Ax -> 0
A5: Dragados.Capital
A7: 1. INFRAESTRUCTURA EN SERVICIO
A8: Construcciones.en.Servicio | B8: Inmuebles.por.Destinación.Servicio | C8: Dragados.Capital.en.Servicio
A9: Edificaciones | B9: Terrenos.diferentes.a.rellenos | C9: Red.Marítima.Dragados.Capital.en.Servicio
A10: Plantas.ductos.y.túneles | B10: Edificaciones
A11: Redes.Líneas.y.cables
A12: Bienes.De.Uso.Público.En.Servicio.Concesiones
A14: 2.INFRAESTRUCTURA EN CONSTRUCCION
A15: Construcciones.en.Construcción | B15: Inmuebles.por.Destinación.construcción | C15: Dragados.Capital.en.construcción
A16: Edificaciones | B16: Edificaciones | C16: Red.Marítima.Dragados.Capitales.En.construcción
A17: Plantas.ductos.y.túneles
A18: Redes.Líneas.y.Cables | D18: =+Cx -> 0
A19: Acueducto.y.canalización
A20: Líneas.y.Cables.de.Interconexión
A22: Edificaciones | B22: Plantas.ductos.y.túneles | C22: Redes.Líneas.y.Cables | D22: Acueducto.y.canalización | E22: Líneas.y.Cables.de.Interconexión | F22: Terrenos.diferentes.a.rellenos | G22: Bienes.De.Uso.Público.En.Servicio.Concesiones
A23: Silos | B23: Plantas de generación | C23: Redes de recolección de aguas | D23: Estaciones de bombeo | E23: Redes de recolección de aguas | F23: Terrenos | G23: Terrenos (Rellenos)
A24: Casetas y campamentos | B24: Plantas de tratamiento | C24: Redes de distribución | D24: Otras plantas, ductos y túneles | E24: Redes de distribución | G24: Red Carretera
A25: Parqueaderos y garajes | B25: Plantas de transmisión | C25: Redes de aire | E25: Redes de aire | G25: Red Férrea
A26: Estanques | B26: Plantas de distribución | C26: Redere alimentación de gas | E26: Redere alimentación de gas
A27: Tanques de almacenamiento | B27: Plantas de producción | C27: Líneas y cables de transmisión
A28: Infraestructura portuaria (muelle) | B28: Plantas de conducción | C28: Líneas y cables de conducción
A29: Infraestructura férrea | B29: Plantas de telecomunicaciones | C29: Líneas y cables de telecomunicaciones
A30: Casas | B30: Subestaciones y/o estaciones de regulación | C30: Líneas y cables de interconexión
A31: Oficinas | B31: Estaciones de bombeo | C31: Otras redes, líneas y cables
A32: Almacenes | B32: Otras plantas, ductos y túneles
A33: Locales | B33: Acueducto y canalización

Sheet TEST- ANGE
D2: TEST DE DETERIORO DEL VALOR DE LOS ACTIVOS ASOCIADOS A LOS ACUERDOS DE CONCESIÓN MODO DE TRANSPORTE PORTUARIO
D3: =[1]Datos_Generales!C5 -> GESTIÓN ADMINISTRATIVA Y FINANCIERA
D4: =[1]Datos_Generales!C6 -> CÓDIGO | G4: GADF-F-095 | H4: VERSIÓN | L4: 2 | Q4: =[1]Datos_Generales!J6 -> FECHA | T4: 2023-09-28
B6: Contrato de Concesión No:
B7: Proyecto: | R7: SI
B8: NIT:
B9: Fecha de evaluación
B11: FASE 1 - TEST | L11: INDICIO
B12: Contestar todas las preguntas de acuerdo con el estado de los activos correspondientes a Activos no generadores de efectivo: Propiedades, planta y equipo y activos intangibles. Para los activos cuya capacidad de prestar servcios se = 0, no se debe realizar evaluación de indicios de deterioro, este activo debe darse de baja.
B13: Indicios de deterioro internos | I13: SI/NO
B14: ¿Se identifican cambios significativos en el grado de utilización o la manera como se esperan usar las Propiedades, planta y equipo o intangibles concesionados, los cuales afectarán desfavorablemente a largo plazo (más de 12 meses)? | J14: SI | L14: Si alguna de las respuestas fue afirmativa, se considera que SI existe indicio de deterioro, de lo contrario NO
B15: ¿Existe evidencia de obsolescencia o deterioro físico de las Propiedades, planta y equipo o intangibles concesionados que trae como consecuencia pérdida en el potencial del servicio recuperable y que puedan afectar el normal funcionamiento a largo plazo (más de 12 meses)? | J15: NO
B16: ¿Existe evidencia sobre pérdida en la capacidad de prestación de servicios que afecte el normal funcionamiento de las Propiedades, planta y equipo o intangibles concesionados, a largo plazo (más de 12 meses)? | L16: =IF(I14="SI",I14,IF(I15="SI",I15,IF(I16="SI",I16,IF(I19="SI",I19,IF(I21="si",I21,IF(I20="SI",I20,"NO")))))) -> NO
B18: Indicios de deterioro externos | I18: SI/NO
B19: ¿Durante el periodo, han tenido lugar, cambios significativos con una incidencia adversa sobre el uso del activo, relacionados con el entorno legal, económico, político y/o ambiental, que puedan afectar el normal funcionamiento a largo plazo (más de 12 meses)?
B20: ¿Durante el periodo, existen cambios significativos con efecto desfavorable para el bien relacionados con el entorno tecnológico que sean de alto impacto, que puedan afectar el normal funcionamiento a largo plazo (más de 12 meses)?
B21: ¿Durante el periodo, el valor de mercado del activo ha disminuido significativamente más que lo que se esperaría como consecuencia del paso del tiempo o de su uso normal del activo?
B23: Materialidad: Se consideran materiales los Equipos de Transporte, Tracción y Elevación (Terrestre, Marítimo y fluvial, De tracción de elevación), Maquinaria y Equipo (Maquinaria industrial, Herramientas y accesorios, Equipo para estaciones de bombeo, Equipo de centros de control, Equipo de ayuda audiovisual, Equipo de seguridad y rescate Otra maquinaria y equipo), Equipos de Comunicación y Computación ( Equipo de comunicación, Equipo de computación y Otros equipos de comunicación y computación) y, los Activos intangibles (Softwares – concesiones, Activos intangibles en concesión) cuyo valor total por grupo de ítem de inversión sea igual o superior a 200 SMMLV.
I29: SI
B32: FASE 2 - INFORMACIÓN PARA LA DETERMINACION DEL VALOR DEL SERVICIO RECUPERABLE
B34: Anexo | C34: Clase | D34: Ítem de Inversión | E34: Detalle de Ítem de Inversión | F34: Unidad de activo | G34: Costo historico del activo (COP) | H34: Fecha puesta en Servicio/ operación (dd/mm/aaaa) | I34: Indicio de deterioro interno identificado en el activo | L34: Indicio de deterioro externo identificado en el activo | O34: Costo de reposición a nuevo ajustado | Q34: Costo de reposición a nuevo ajustado y rehabilitación | S34: Valor de mercado menos costos de disposición
I35: ¿Se identifican cambios significativos en el grado de utilización o la manera como se esperan usar las" PPYE" o los "AI", los cuales afectarán desfavorablemente a largo plazo? | J35: ¿Existe evidencia de obsolescencia o deterioro físico de las Propiedades, planta y equipo o intangibles concesionados que trae como consecuencia pérdida en el potencial del servicio y que afectan el normal funcionamiento a largo plazo ? | K35: ¿Existe evidencia sobre pérdida en la capacidad de prestación de servicios que afecte el normal funcionamiento, a largo plazo? | L35: ¿Durante el periodo, han tenido lugar, cambios significativos con una incidencia adversa sobre el uso del activo, relacionados con el entorno legal, económico, político y/o ambiental? | M35: ¿Durante el periodo, existen cambios significativos con efecto desfavorable para el bien relacionados con el entorno tecnológico que sean de alto impacto? | N35: ¿Durante el periodo, el valor de mercado del activo ha disminuido significativamente más que lo que se esperaría como consecuencia del paso del tiempo o de su uso normal del activo? | S35: Valor de mercado | V35: Costo de disposición
O36: Aplica | P36: Valor Costo de Reposición (COP) | Q36: Aplica | R36: Valor Costo de Rehabilitación (COP) | S36: Existiere Valor de Mercado | T36: Aplica | U36: Valor de Mercado (COP) | V36: Aplica | W36: Valor Costo de disposición (COP)
O37: =+IF(OR($I37=$I$29,$J37=$I$29,$K37=$I$29,$L37=$I$29,$M37=$I$29,$N37=$I$29),"Aplica","N/A") -> N/A | Q37: =+IF(OR(J37=$I$29,I37=$I$29),"Aplica","N/A") -> N/A | T37: =+IF(OR($I37=$R$7,$J37=$R$7,$J37=$R$7,$K37=$R$7,$L37=$R$7,$M37=$R$7,$N37=$R$7)*AND(S37="si"),"Aplica","N/A") -> N/A | V37: =+IF(T37="Aplica","Aplica","N/A") -> N/A
O38: =+IF(OR($I38=$I$29,$J38=$I$29,$K38=$I$29,$L38=$I$29,$M38=$I$29,$N38=$I$29),"Aplica","N/A") -> N/A | Q38: =+IF(OR(J38=$I$29,I38=$I$29),"Aplica","N/A") -> N/A | T38: =+IF(OR($I38=$R$7,$J38=$R$7,$J38=$R$7,$K38=$R$7,$L38=$R$7,$M38=$R$7,$N38=$R$7)*AND(S38="si"),"Aplica","N/A") -> N/A | V38: =+IF(T38="Aplica","Aplica","N/A") -> N/A
O39: N/A | Q39: =+IF(OR($J39=$I$29,$I39=$I$29),"Aplica","N/A") -> N/A | T39: =+IF(OR($I39=$R$7,$J39=$R$7,$J39=$R$7,$K39=$R$7,$L39=$R$7,$M39=$R$7,$N39=$R$7)*AND(S39="si"),"Aplica","N/A") -> N/A | V39: N/A
O40: N/A | Q40: N/A | T40: =+IF(OR($I40=$R$7,$J40=$R$7,$J40=$R$7,$K40=$R$7,$L40=$R$7,$M40=$R$7,$N40=$R$7)*AND(S40="si"),"Aplica","N/A") -> N/A | V40: =+IF(T40="Aplica","Aplica","N/A") -> N/A
O41: N/A | Q41: N/A | T41: N/A | V41: N/A
O42: N/A | Q42: N/A | T42: N/A | V42: N/A
O43: N/A | Q43: N/A | T43: N/A | V43: N/A
O44: N/A | Q44: N/A | T44: N/A | V44: N/A
O45: N/A | Q45: N/A | T45: N/A | V45: N/A
O46: N/A | Q46: N/A | T46: N/A | V46: N/A
B48: FIRMAS
B53: Firma Representante legal del concesionario | H53: Firma Contador Público del concesionario | P53: Interventor del Contrato de Concesión
B54: Nombre: | H54: Nombre: | P54: (en caso que aplique)
P55: Nombre:
P56: Cargo:
P57: T.P. No.
B58: REVISIÓN DOCUMENTAL AGENCIA NACIONAL DE INFRAESTRUCTURA (ANI)
B59: Revisado por: | K59: Aprobado por:
B60: Aspectos técnicos | E60: Aspectos Financieros | K60: Aspectos técnicos | Q60: Aspectos Financieros
B61: Nombre: | E61: Nombre: | K61: Nombre: | Q61: Nombre:
B62: Firma: | E62: Firma: | K62: Firma:
Q64: Firma:
B65: Lider de seguimiento de proyecto | E65: Profesional Financiero | K65: Gerente Técnico para el modo portuario | Q65: Gerente Financiero para el modo portuario

Sheet Hoja1 (hidden)
C1: Clase
B2: Anexo | C2: PROPIEDADES.PLANTA.Y.EQUIPOS | D2: SISTEMAS
B3: P.P.Y.E | C3: PROPIEDADES.PLANTA.Y.EQUIPOS | D3: SISTEMAS.Activos.Intangibles
B4: SISTEMAS
B6: ítem de inversión
B7: PROPIEDADES.PLANTA.Y.EQUIPOS | C7: SISTEMAS.Activos.Intangibles
B8: Maquinaria.y.equipo | C8: Activos.Intangibles
B9: Equipos.de.transporte.tracción.y.elevación
B10: Equipos.de.comunicación.y.computación
B12: Detalle de Ítem de Inversión
B13: Maquinaria.y.equipo | C13: Equipos.de.transporte.tracción.y.elevación | D13: Equipos.de.comunicación.y.computación | E13: Activos.Intangibles
B14: Maquinaria industrial | C14: Equipos de transporte Terrestre | D14: Equipos de comunicación | E14: Softwares - concesiones
B15: Equipo para estaciones de bombeo | C15: Equipo de transporte marítimo y fluvial | D15: Equipos de computación | E15: Activos intangibles en concesión
B16: Equipo de centros de control | C16: Equipo de tracción | D16: Otros equipos de comunicación y computación
B17: Equipo de ayuda audiovisual | C17: Equipos de elevación (grúas)
B18: Equipo de seguridad y rescate
B19: Otra maquinaria y equipo
B20: Herramientas y accesorios
C23: Enfoque | D23: Aplica pregunta
A24: 1 | B24: ¿Se identifican cambios significativos en el grado de utilización o la manera como se esperan usar las Propiedades, planta y equipo o intangibles concesionados, los cuales afectarán desfavorablemente a largo plazo (más de 12 meses)? | C24: Costo de reposición a nuevo ajustado | D24: 1,2,3, 4, 5 y 6
A25: 2 | B25: ¿Existe evidencia de obsolescencia o deterioro físico de las Propiedades, planta y equipo o intangibles concesionados que trae como consecuencia pérdida en el potencial del servicio recuperable y que puedan afectar el normal funcionamiento a largo plazo (más de 12 meses)? | C25: Enfoque del costo de rehabilitación | D25: 2
A26: 3 | B26: ¿Existe evidencia sobre pérdida en la capacidad de prestación de servicios que afecte el normal funcionamiento de las Propiedades, planta y equipo o intangibles concesionados, a largo plazo (más de 12 meses)? | C26: Valor de mercado menos costos de disposición | D26: 1,2,3, 4, 5 y 6
B28: Indicios de deterioro externos
A29: 4 | B29: ¿Durante el periodo, han tenido lugar, cambios significativos con una incidencia adversa sobre el uso del activo, relacionados con el entorno legal, económico, político y/o ambiental?
A30: 5 | B30: ¿Durante el periodo, existen cambios significativos con efecto desfavorable para el bien relacionados con el entorno tecnológico que sean de alto impacto?
A31: 6 | B31: ¿Durante el periodo, el valor de mercado del activo ha disminuido significativamente más que lo que se esperaría como consecuencia del paso del tiempo o de su uso normal del activo?

Sheet Instrucciones
B2: INSTRUCCIONES PARA EL DILIGENCIAMIENTO DEL TEST DE DETERIORO DEL VALOR DE LOS ACTIVOS ASOCIADOS CON LOS ACUERDOS DE CONCESIÓN DEL MODO DE TRANSPORTE PORTUARIO
B4: MATERIALIDAD BIENES DE USO PÚBLICO Y ACTIVOS NO GENERADORES DE EFECTIVO
B5: De acuerdo con la naturaleza de las actividades desarrolladas y el que hacer del modo de transporte portuario, se definieron como materiales los bienes de uso público y los siguientes auxiliares directos de las subcuentas de Propiedades, planta y equipo y activos intangibles: Equipos de Transporte, Tracción y Elevación (Terrestre , Marítimo y fluvial, De tracción De elevación), Maquinaria y Equipo (Maquinaria industrial, Herramientas y accesorios, Equipo para estaciones de bombeo, Equipo de centros de control, Equipo de ayuda audiovisual, Equipo de seguridad y rescate, Otra maquinaria y equipo, Equipos de Comunicación y Computación), Activos intangibles, cuyo valor total por grupo de ítem de inversión sea igual o superior a 200 SMMLV, por sociedad portuaria.
B7: Diligencie el Test de los Bienes de usos público (Test BUP) y el Test de Activos no generadores de efectivo (Test ANGE) para las Propiedades, planta y equipos y activos intangibles que se consideren materiales. Para cada Test detalle la siguiente información:
B8: Contrato de Concesión No: | C8: Identificar el N.º del Contrato que se ha otorgado a la Concesión.
B9: Proyecto: | C9: Indicar nombre completo del proyecto.
B10: NIT: | C10: Diligenciar el número de identificación tributaria NIT del concesionario.
B13: 1. TEST BUP - TEST DE DETERIORO DE BIENES DE USO PÚBLICO - FASE 1
B14: La fase 1 del test de deterioro de bienes de uso público se realizará de manera global para la totalidad de los activos de bienes de uso público (Infraestructura en servicio, en construcción y dragados capital), es decir, un (1) test que comprenda todas las clasificaciones. Contestar todas las preguntas seleccionando Sí o No, según corresponda, en caso de que todas las respuestas sean "NO", se concluirá que no se presentan indicios de deterioro y habrá finalizado el diligenciamiento del test. En caso que alguna de las preguntas tenga una respuesta afirmativa valor "SI", se indicará valor "SÍ" en la celda "INDICIO" y se debe pasar a la fase 2 del test.
B15: 2.TEST BUP - FASE 2- INFORMACIÓN PARA LA DETERMINACIÓN DEL VALOR DEL SERVICIO RECUPERABLE
B16: En este cuadro se debe diligenciar la información de manera particular por unidad de activo al que se le identificó algún(os) indicio(s) de deterioro.
B17: En caso de presentar indicios de deterioro se requiere que el concesionario allegue a la Agencia como evidencia para documentar y soportar la existencia de indicios del deterioro de valor, según aplique: i) opiniones de experto, a través de informes que documenten las evidencias del indicio de deterioro de valor de los activos Bienes de uso público y Activos no generadores de efectivo; ii) planos, fotografías, videos o declaraciones del personal acerca de la situación operativa de los activos cuyo deterioro físico se pretende probar; iii) indicadores de gestión; iv) y demás -soportes que la Agencia considere pertinentes para demostrar el referido deterioro.
B18: Anexo: | C18: De la lista desplegable, Seleccione el anexo al cual corresponde el activo de infraestructura que presenta indicios de deterioro, tomando como base la información contenida en el Formato GCSP-F-011 "INFORME DE INVERSIÓN DE CAPITAL PRIVADO EN BIENES DE USO PÚBLICO DEL MODO PORTUARIO SEGÚN EL MARCO NORMATIVO PARA ENTIDADES DEL GOBIERNO" (Capitulo 4. detalle de inversión por unidad de activo: Infraestructura en Servicio,Infraestructura en Construcción,Propiedad, Planta y Equipos, Dragados, sistemas)
B19: Clase: | C19: De la lista desplegable, Seleccione la clase a la cual corresponde el activo de infraestructura que presenta indicios de deterioro, tomando como base la información contenida en el Formato GCSP-F-011 "INFORME DE INVERSIÓN DE CAPITAL PRIVADO EN BIENES DE USO PÚBLICO DEL MODO PORTUARIO SEGÚN EL MARCO NORMATIVO PARA ENTIDADES DEL GOBIERNO"
B20: Ítem de Inversión: | C20: De la lista desplegable, Seleccione el Ítem de inversión al cual corresponde el activo de infraestructura que presenta indicios de deterioro, como base la información contenida en el Formato GCSP-F-011 "INFORME DE INVERSIÓN DE CAPITAL PRIVADO EN BIENES DE USO PÚBLICO DEL MODO PORTUARIO SEGÚN EL MARCO NORMATIVO PARA ENTIDADES DEL GOBIERNO"
B21: Detalle de Ítem de Inversión | C21: Seleccione el detalle de Ítem de inversión al cual corresponde el activo de infraestructura que presenta indicios de deterioro, tomando como base el Formato GCSP-F-011 "INFORME DE INVERSIÓN DE CAPITAL PRIVADO EN BIENES DE USO PÚBLICO DEL MODO PORTUARIO SEGÚN EL MARCO NORMATIVO PARA ENTIDADES DEL GOBIERNO"
B22: Unidad de activo | C22: Describir la unidad de activo a la que se le identificó el indicio de deterioro.
B23: Costo historico del activo (COP): | C23: Indique el valor de adquisición del activo o de la infraestructura que presenta indicios de deterioro, tomando como base la información contenida en el Formato GCSP-F-011 "INFORME DE INVERSIÓN DE CAPITAL PRIVADO EN BIENES DE USO PÚBLICO DEL MODO PORTUARIO SEGÚN EL MARCO NORMATIVO PARA ENTIDADES DEL GOBIERNO"
B24: Fecha puesta en Servicio/ operación: (dd/mm/aaaa) | C24: Indique la fecha completa de puesta en servicios u operación del activo de infraestructura que presenta indicios de deterioro, tomando como base el Formato GCSP-F-011 "INFORME DE INVERSIÓN DE CAPITAL PRIVADO EN BIENES DE USO PÚBLICO DEL MODO PORTUARIO SEGÚN EL MARCO NORMATIVO PARA ENTIDADES DEL GOBIERNO"
B25: Proporción de la parte dañada (%) | C25: Indique la proporción o porcentaje (%) de la parte dañada con relación al activo total que presenta daño fisico o perdida de la capacidad para prestar servicios.
B26: Indicio de deterioro fue identificado en el activo | C26: Seleccionar el valor "SI" o "NO" de acuerdo a las opciones indicadas o en ambas según aplique.
B27: Información para la determinación del valor del servicio recuperable (COP) | C27: El concesionario deberá suministrar los datos de costo de reposición, costo de rehabilitación, valor de mercado si existiere y los costos de disposición. Con los datos indicados, la Agencia determinará si existe lugar al deterioro de activos.
B28: Valor Costo de Reposición (COP) | C28: Si "Aplica", Indique el valor en el que se incurriría en una fecha determinada para reponer la capacidad operativa del activo existente, caso contrario no diligenciar.
B29: Valor Costo de Rehabilitación (COP) | C29: Si "Aplica", Indique el valor en el que se incurriría en una fecha determinada para reponer la capacidad operativa del activo existente, caso contrario no diligenciar.
B30: En caso de requerir mayor número de filas para detallar los activos con indicios de deterioro se debe solicitar al al Grupo Iinterno de Trabajo Financiero 1 (GITF1), la inclusión de las mismas en el formato
B32: 3. TEST ANGE - TEST DE DETERIORO ACTIVOS NO GENERADORES DE EFECTIVO - FASE 1
B33: La fase 1 del test de deterioro de activos no generadores de efectivo se realizará de manera global para la totalidad de las propiedades, planta y equipo y, sistemas (Intangibles), es decir, un (1) test que comprenda todas las clasificaciones. Contestar todas las preguntas seleccionando Sí o No, según corresponda, en caso de que todas las respuestas sean "NO", se concluirá que no se presentan indicios de deterioro y habrá finalizado el diligenciamiento del test. En caso que alguna de las preguntas tenga una respuesta afirmativa valor "SI", se indicará valor "SÍ" en la celda "INDICIO" y se debe pasar a la fase 2 del test.
B34: 4. TEST DE DETERIORO ACTIVOS NO GENERADORES DE EFECTIVO - FASE 2 - INFORMACIÓN PARA LA DETERMINACIÓN DEL VALOR DEL SERVICIO RECUPERABLE
B35: En este cuadro se debe diligenciar la información de manera particular por unidad de activo al que se le identificó algún(os) indicio(s) de deterioro.
B36: En caso de presentar indicios de deterioro se requiere que el concesionario allegue a la Agencia como evidencia para documentar y soportar la existencia de indicios del deterioro de valor, según aplique: i) opiniones de experto, a través de informes que documenten las evidencias del indicio de deterioro de valor de los activos Bienes de uso público y Activos no generadores de efectivo; ii) planos, fotografías, videos o declaraciones del personal acerca de la situación operativa de los activos cuyo deterioro físico se pretende probar; iii) indicadores de gestión; iv) y demás -soportes que la Agencia considere pertinentes para demostrar el referido deterioro.
B37: Anexo: | C37: De la lista desplegable, Seleccione el anexo al cual corresponde el activo de Propiedades, planta y equipos e intangibles que presenta indicios de deterioro, tomando como base la información contenida en el Formato GCSP-F-011 "INFORME DE INVERSIÓN DE CAPITAL PRIVADO EN BIENES DE USO PÚBLICO DEL MODO PORTUARIO SEGÚN EL MARCO NORMATIVO PARA ENTIDADES DEL GOBIERNO"
B38: Clase: | C38: De la lista desplegable, Seleccione la clase a la cual corresponde el activo de Propiedades, planta y equipos e intangibles que presenta indicios de deterioro, tomando como base la infomación contenida en el Formato GCSP-F-011 "INFORME DE INVERSIÓN DE CAPITAL PRIVADO EN BIENES DE USO PÚBLICO DEL MODO PORTUARIO SEGÚN EL MARCO NORMATIVO PARA ENTIDADES DEL GOBIERNO"
B39: Ítem de Inversión: | C39: De la lista desplegable, Seleccione el Ítem de inversión al cual corresponde el activo de Propiedades, planta y equipos e intangible que presenta indicios de deterioro, tomando como base el GCSP-F-011 "INFORME DE INVERSIÓN DE CAPITAL PRIVADO EN BIENES DE USO PUBLICO DEL MODO PORTUARIO SEGÚN EL MARCO NORMATIVO PARA ENTIDADES DEL GOBIERNO"
B40: Detalle de Ítem de Inversión (Unidad de activo): | C40: Indique el detalle de Ítem de inversión al cual corresponde el activo de Propiedades, planta y equipos e intangible que presenta indicios de deterioro, tomando como base la infomación contenida en el Formato GCSP-F-011 "INFORME DE INVERSIÓN DE CAPITAL PRIVADO EN BIENES DE USO PÚBLICO DEL MODO PORTUARIO SEGÚN EL MARCO NORMATIVO PARA ENTIDADES DEL GOBIERNO"
B41: Unidad de activo | C41: Describir la unidad de activo a la que se le identifico el indicio de deterioro.
B42: Valor de la Inversión Acumulada (COP): | C42: Indique el valor del activo o valor de la inversión de Propiedades, planta y equipos e intangible que presenta indicios de deterioro, tomando como base la infomación contenida en el Formato GCSP-F-011 "INFORME DE INVERSIÓN DE CAPITAL PRIVADO EN BIENES DE USO PÚBLICO DEL MODO PORTUARIO SEGÚN EL MARCO NORMATIVO PARA ENTIDADES DEL GOBIERNO".
B43: Fecha puesta en Servicio/ operación: (dd/mm/aaaa) | C43: Indique la fecha completa de puesta en servicios u operación de activo de Propiedades, planta y equipos e intangible que presenta indicios de deterioro, tomando como base la infomación contenida en el Formato GCSP-F-011 "INFORME DE INVERSIÓN DE CAPITAL PRIVADO EN BIENES DE USO PÚBLICO DEL MODO PORTUARIO SEGÚN EL MARCO NORMATIVO PARA ENTIDADES DEL GOBIERNO".
B44: Indicio de deterioro fue identificado en el activo (Interno/Externo) | C44: Seleccionar el valor "SI" o "NO" de acuerdo a las opciones indicadas o en ambas según aplique.
B45: Información para la determinación del valor del servicio recuperable (COP) | C45: El concesionario deberá suministrar los datos de costo de reposición, costo de rehabilitación, valor de mercado si existiere y los costos de disposición. Con los datos indicados, la Agencia determinará si existe lugar al deterioro de activos.
B46: Valor Costo de Reposición (COP) | C46: Si "Aplica", Indique el valor en el que se incurriría en una fecha determinada para reponer la capacidad operativa del activo existente, caso contrario no diligenciar.
B47: Valor Costo de Rehabilitación (COP) | C47: Si "Aplica", Indique el valor en el que se incurriría en una fecha determinada para reponer la capacidad operativa del activo existente, caso contrario no diligenciar.
B48: Valor de mercado:
B49: Existiere Valor de Mercado | C49: Indique "SI" o "NO" según aplique.
B50: Valor de Mercado (COP) | C50: Si "Aplica" valor de mercado, indique el valor por el cual el activo puede ser intercambiado en una transacción realizada en condiciones de independencia mutua. Determinado mediante proveedores de precios, de una entidad pública o privada o de una persona con la idoneidad necesaria para establecer precios.
B51: Costo de disposición | C51: Si "Aplica", indique el valor costos de carácter legal, timbres y otros impuestos, costos de desplazar los activos, los costos de desmantelamientos, comisión de intermediarios en la venta de activos (remates), entre otros, en los que se incurre para dejar el activo en condiciones para la venta.
B52: En caso de requerir mayor número de filas para detallar los activos con indicios de deterioro se debe solicitar al Grupo Iinterno de Trabajo Financiero 1 (GITF1) la inclusión de las mismas en el formato.

Sheet IndicesIPC (hidden)
A3: Total, Indice de Precios al Consumidor (IPC)
A5: Índices - Serie de empalme 2003 - 2021
T8: Base Diciembre de 2018 = 100,00
A9: Mes | B9: 2003 | C9: 2004 | D9: 2005 | E9: 2006 | F9: 2007 | G9: 2008 | H9: 2009 | I9: 2010 | J9: 2011 | K9: 2012 | L9: 2013 | M9: 2014 | N9: 2015 | O9: 2016 | P9: 2017 | Q9: 2018 | R9: 2019 | S9: 2020 | T9: 2021
A10: Enero | B10: 50.42 | C10: 53.54 | D10: 56.45 | E10: 59.02 | F10: 61.8 | G10: 65.51 | H10: 70.21 | I10: 71.69 | J10: 74.12 | K10: 76.75 | L10: 78.28 | M10: 79.95 | N10: 83 | O10: 89.19 | P10: 94.07 | Q10: 97.53 | R10: 100.6 | S10: 104.24 | T10: 105.91
A11: Febrero | B11: 50.98 | C11: 54.18 | D11: 57.02 | E11: 59.41 | F11: 62.53 | G11: 66.5 | H11: 70.8 | I11: 72.28 | J11: 74.57 | K11: 77.22 | L11: 78.63 | M11: 80.45 | N11: 83.96 | O11: 90.33 | P11: 95.01 | Q11: 98.22 | R11: 101.18 | S11: 104.94 | T11: 106.58
A12: Marzo | B12: 51.51 | C12: 54.71 | D12: 57.46 | E12: 59.83 | F12: 63.29 | G12: 67.04 | H12: 71.15 | I12: 72.46 | J12: 74.77 | K12: 77.31 | L12: 78.79 | M12: 80.77 | N12: 84.45 | O12: 91.18 | P12: 95.46 | Q12: 98.45 | R12: 101.62 | S12: 105.53 | T12: 107.12
A13: Abril | B13: 52.1 | C13: 54.96 | D13: 57.72 | E13: 60.09 | F13: 63.85 | G13: 67.51 | H13: 71.38 | I13: 72.79 | J13: 74.86 | K13: 77.42 | L13: 78.99 | M13: 81.14 | N13: 84.9 | O13: 91.63 | P13: 95.91 | Q13: 98.91 | R13: 102.12 | S13: 105.7 | T13: 107.76
A14: Mayo | B14: 52.36 | C14: 55.17 | D14: 57.95 | E14: 60.29 | F14: 64.05 | G14: 68.14 | H14: 71.39 | I14: 72.87 | J14: 75.07 | K14: 77.66 | L14: 79.21 | M14: 81.53 | N14: 85.12 | O14: 92.1 | P14: 96.12 | Q14: 99.16 | R14: 102.44 | S14: 105.36 | T14: 108.84 | V14: 5 | W14: =+V14*12 -> 60 | X14: =+V15/W14 -> 1533333.333 | Y14: =+X14*W15 -> 1585061.294
A15: Junio | B15: 52.33 | C15: 55.51 | D15: 58.18 | E15: 60.48 | F15: 64.12 | G15: 68.73 | H15: 71.35 | I15: 72.95 | J15: 75.31 | K15: 77.72 | L15: 79.39 | M15: 81.61 | N15: 85.21 | O15: 92.54 | P15: 96.23 | Q15: 99.31 | R15: 102.71 | S15: 104.97 | T15: 108.78 | V15: 92000000 | W15: =+(T15/S19) -> 1.033735627 | X15: =+X14*9 -> 13800000
A16: Julio | B16: 52.26 | C16: 55.49 | D16: 58.21 | E16: 60.73 | F16: 64.23 | G16: 69.06 | H16: 71.32 | I16: 72.92 | J16: 75.42 | K16: 77.7 | L16: 79.43 | M16: 81.73 | N16: 85.37 | O16: 93.02 | P16: 96.18 | Q16: 99.18 | R16: 102.94 | S16: 104.97 | W16: =+V15*W15 -> 95103677.66 | X16: =+W16-X15 -> 81303677.66 | Y16: =+W16/W14 -> 1585061.294 | Z16: =+Y16*9 -> 14265551.65
A17: Agosto | B17: 52.42 | C17: 55.51 | D17: 58.21 | E17: 60.96 | F17: 64.14 | G17: 69.19 | H17: 71.35 | I17: 73 | J17: 75.39 | K17: 77.73 | L17: 79.5 | M17: 81.9 | N17: 85.78 | O17: 92.73 | P17: 96.32 | Q17: 99.3 | R17: 103.03 | S17: 104.96 | Z17: =+W16-Z16 -> 80838126.01
A18: Septiembre | B18: 52.53 | C18: 55.67 | D18: 58.46 | E18: 61.14 | F18: 64.2 | G18: 69.06 | H18: 71.28 | I18: 72.9 | J18: 75.62 | K18: 77.96 | L18: 79.73 | M18: 82.01 | N18: 86.39 | O18: 92.68 | P18: 96.36 | Q18: 99.47 | R18: 103.26 | S18: 105.29 | W18: =+V15-X15 -> 78200000
A19: Octubre | B19: 52.56 | C19: 55.66 | D19: 58.6 | E19: 61.05 | F19: 64.2 | G19: 69.3 | H19: 71.19 | I19: 72.84 | J19: 75.77 | K19: 78.08 | L19: 79.52 | M19: 82.14 | N19: 86.98 | O19: 92.62 | P19: 96.37 | Q19: 99.59 | R19: 103.43 | S19: 105.23 | Y19: =+(V15-X15)*W15 -> 80838126.01
A20: Noviembre | B20: 52.75 | C20: 55.82 | D20: 58.66 | E20: 61.19 | F20: 64.51 | G20: 69.49 | H20: 71.14 | I20: 72.98 | J20: 75.87 | K20: 77.98 | L20: 79.35 | M20: 82.25 | N20: 87.51 | O20: 92.73 | P20: 96.55 | Q20: 99.7 | R20: 103.54 | S20: 105.08
A21: Diciembre | B21: 53.07 | C21: 55.99 | D21: 58.7 | E21: 61.33 | F21: 64.82 | G21: 69.8 | H21: 71.2 | I21: 73.45 | J21: 76.19 | K21: 78.05 | L21: 79.56 | M21: 82.47 | N21: 88.05 | O21: 93.11 | P21: 96.92 | Q21: 100 | R21: 103.8 | S21: 105.48
A24: Fuente: DANE.
A25: Nota: La diferencia en la suma de las variables, obedece al sistema de aproximación y redondeo.
A26: Actualizado el 3 de julio de 2021

Sheet Hoja2 (hidden)
B2: En construcción
B3: En servicio
B5: 1
B6: 2
B8: NO
B9: SI
